[Event "Charlotte Spring IM-C 2023"]
[Site "Charlotte"]
[Date "2023.03.18"]
[Round "5.1"]
[White "Vanapalli, Vishnu"]
[Black "Adamson, Robby"]
[Result "1/2-1/2"]
[ECO "B13"]
[WhiteElo "2226"]
[BlackElo "2265"]
[Annotator "TA"]
[PlyCount "145"]
[EventDate "2023.03.14"]
[EventType "tourn"]
[EventCountry "USA"]
[SourceTitle "playchess.com"]
[Source "ChessBase"]
[SourceQuality "1"]
[TimeControl "5400+30"]

{[%evp 19,145,23,18,31,22,25,12,10,25,22,22,27,23,4,3,0,25,31,27,19,51,42,43,45,51,56,55,8,20,6,9,0,0,0,0,0,25,15,14,0,8,0,0,0,0,0,16,0,7,5,8,10,22,0,0,0,20,18,22,3,20,6,47,20,78,8,15,0,0,0,11,12,16,0,16,0,25,0,82,0,56,11,40,14,31,6,14,0,17,11,31,0,0,0,5,18,43,32,39,34,47,42,54,47,137,131,144,33,259,259,259,0,0,0,249,202,217,0,-177,0,0,0,0,0,0,0,0,0]} 1. e4 {[%emt 1:31:00]} c6 {[%emt 0:03:01]} 2. d4 {[%emt 0:00:00]} d5 {[%emt 0:00:03]} 3. exd5 {[%emt 0:00:00]} cxd5 {[%emt 0:00:05]} 4. Bd3 {[%emt 0:00:00]} Nf6 {[%emt 0:03:10]} 5. h3 {[%emt 0:00:00]} Nc6 {[%emt 0:00:29]} 6. c3 {[%emt 0:00:00]} e5 {[%emt 0:02:58]} 7. dxe5 {[%emt 0:00:00]} Nxe5 {[%emt 0:00:01]} 8. Nf3 {[%emt 0:00:00]} Nxd3+ {[%emt 0:00:36]} 9. Qxd3 {[%emt 0:00:00]} Be7 {[%emt 0:00:03]} 10. O-O {[%emt 0:00:00]} O-O {[%emt 0:00:00]} 11. Be3 {[%emt 0:00:00] B13: Caro-Kann: Exchange Variation and Panov-Botvinnik Attack.} h6 {[%emt 0:02:17]} 12. Nbd2 {[%emt 0:00:00][%cal Bb1d2,Bd2f1,Bf1e3,Be3g4][%mdl 32]} Re8 {[%emt 0:02:57]} 13. Rfe1 {[%emt 0:00:00] [#]} Bf8 $146 {[%emt 0:04:43]} ({Predecessor:} 13... a6 14. Bd4 Be6 15. Re3 Nd7 16. Rae1 Nf8 17. Nf1 Bd6 18. Ne5 f6 19. Ng6 Qd7 20. Nxf8 Bxf8 21. Ng3 Qf7 22. Qe2 Bd7 23. Qf3 Rxe3 24. Rxe3 Re8 25. Nf5 {½-½ Nevednichy,V (2563)-Istratescu,A (2616) HUN-chT 0607 2006 (10)}) 14. Bd4 {[%emt 0:00:00]} Rxe1+ {[%emt 0:09:04]} 15. Rxe1 {[%emt 0:00:00]} Be6 {[%emt 0:00:02]} 16. Nf1 {[%emt 0:00:00]} Ne4 {[%emt 0:06:01]} 17. Ne3 {[%emt 0:00:00]} Nc5 {[%emt 0:06:43]} 18. Bxc5 {[%emt 0:00:00]} Bxc5 {[%emt 0:00:06]} 19. Nd4 {[%emt 0:00:00]} Qd7 {[%emt 0:15:47]} 20. Nxe6 {[%emt 0:00:00]} fxe6 {[%emt 0:01:39]} 21. Ng4 {[%emt 0:00:00]} Qf7 {[%emt 0:04:35] Dodges Qg6} 22. Qg3 {[%emt 0:00:00]} Kh7 {[%emt 0:16:01]} 23. Re2 {[%emt 0:00:00]} (23. Ne5 $14 Qf5 24. Nd7) 23... Rd8 {[%emt 0:06:09]} 24. Qe5 {[%emt 0:00:00]} Re8 {[%emt 0:02:07]} 25. c4 {[%emt 0:01:03] Threatens to win with cxd5.} Rd8 {[%emt 0:01:46][%cal Od5c4]} 26. Rd2 {[%emt 0:01:44]} Bd6 {[%emt 0:01:20]} 27. Qe2 {[%emt 0:03:07]} Kg8 {[%emt 0:09:00]} 28. cxd5 {[%emt 0:02:42]} exd5 {[%emt 0:00:01]} 29. Rd1 {[%emt 0:01:11]} Bc5 {[%emt 0:01:37]} 30. Qc2 {[%emt 0:02:18]} Bb6 {[%emt 0:00:30]} 31. Ne5 {[%emt 0:00:16]} Qe6 {[%emt 0:00:37]} 32. Nd3 {[%emt 0:00:20]} Qe4 {[%emt 0:01:38]} 33. b3 {[%emt 0:02:40]} Rf8 {[%emt 0:00:36][%cal Of8f2] ...Rxf2! is the strong threat.} 34. Qd2 {[%emt 0:00:25]} Qd4 {[%emt 0:00:26]} 35. Qe2 {[%emt 0:00:19]} Kh7 {[%emt 0:00:53]} 36. Kh1 {[%emt 0:00:25]} (36. Qc2 {keeps more tension.} Qe4 37. Rd2 Kg8 38. Re2) 36... Qe4 {[%emt 0:00:35]} 37. Qd2 {[%emt 0:00:58]} Kg8 {[%emt 0:00:31]} 38. Re1 {[%emt 0:00:09]} Qd4 {[%emt 0:00:12]} 39. Qe2 {[%emt 0:00:06]} Kh7 {[%emt 0:00:40]} (39... Ba5 $5 {[%cal Ra5e1]} 40. Qe6+ Kh7 $11) 40. Qd1 {[%emt 0:01:07]} Kg8 {[%emt 0:00:32]} 41. Re2 {[%emt 0:00:26]} Kh8 {[%emt 0:00:42]} (41... Qf6 $11 {keeps the balance.}) 42. Rc2 {[%emt 0:00:40]} (42. g3 $16) 42... Re8 $11 {[%emt 0:00:24]} 43. Qf3 {[%emt 0:00:32]} Kg8 {[%emt 0:00:45]} 44. Qd1 {[%emt 0:00:28]} Rf8 {[%emt 0:00:12]} 45. Kg1 {[%emt 0:00:31]} Re8 {[%emt 0:00:35]} 46. Re2 {[%emt 0:00:19]} Rf8 {[%emt 0:00:46]} 47. Kh1 {[%emt 0:00:09]} Kh7 {[%emt 0:00:29]} 48. Re7 {[%emt 0:00:19]} Qc3 {[%emt 0:00:33] [#]} (48... Qf6 $11 49. Rxb7 Bxf2 50. Nxf2 Qxf2) 49. Re2 {[%emt 0:01:14]} (49. Rxb7 $6 Bxf2 50. Qb1 Kg8 51. Nxf2 Rxf2 52. Rb8+ (52. Rxa7 Rc2 $11) 52... Kf7 $11) (49. Qe2 $1 $16) 49... Kg8 {[%emt 0:00:19]} (49... Qd4 $11) 50. Rd2 {[%emt 0:00:30]} Kh8 {[%emt 0:00:33]} 51. Qe2 {[%emt 0:00:27]} Qa1+ {[%emt 0:00:36]} 52. Rd1 {[%emt 0:00:12]} Qf6 {[%emt 0:00:31]} 53. Re1 {[%emt 0:00:50]} Kg8 {[%emt 0:00:24]} 54. Kg1 {[%emt 0:00:29]} Qd4 {[%emt 0:00:10]} 55. Rf1 {[%emt 0:00:27]} Kh7 {[%emt 0:00:29]} 56. Ne5 {[%emt 0:00:35]} Rf5 {[%emt 0:00:46]} 57. Nf3 $36 {[%emt 0:00:19][%mdl 2048] White has some pressure.} Qf6 {[%emt 0:00:41]} 58. Qd3 {[%emt 0:00:07] And now g4 would win.} Kh8 {[%emt 0:00:19]} 59. Re1 {[%emt 0:00:33][%cal Bf1e1,Be1e2,Be2e8,Be8e6][%mdl 32] Hoping for Re8+.} Qf8 {[%emt 0:00:41] Against Re8} 60. Re2 {[%emt 0:00:36]} Kg8 {[%emt 0:00:32]} 61. Kh1 {[%emt 0:00:25]} Qf6 {[%emt 0:00:21]} (61... Bc5 $14) 62. Re8+ $16 {[%emt 0:00:38]} Kf7 {[%emt 0:00:03] [#]} 63. Qb5 {[%emt 0:00:41] White is more active.} ({Better is} 63. Rb8 $1 $16) 63... Rxf3 $2 {[%emt 0:00:55]} (63... Bxf2 $2 64. Qd7+ (64. Qxb7+ $2 Kxe8 65. Qb5+ Kf8 $19) 64... Kg6 65. Re6 $18 (65. Qxb7 Rxf3)) (63... Qd6 $1 $14) 64. Qd7+ $18 {[%emt 0:00:17]} Kg6 {[%emt 0:00:01]} 65. Qg4+ {[%emt 0:00:35]} (65. gxf3 $2 {leads to mate.} Qxf3+ 66. Kh2 Qxf2+ 67. Kh1 Qg1#) 65... Kf7 {[%emt 0:00:16] ( -> ...Qa1+)} 66. Qd7+ {[%emt 0:00:03]} Kg6 {[%emt 0:00:01]} 67. Re6 {[%emt 0:00:09]} (67. gxf3 $2 {gets mated.} Qxf3+ 68. Kh2 Qxf2+ 69. Kh1 Qg1#) 67... Rxf2 {[%emt 0:00:38]} 68. Qxd5 $2 {[%emt 0:01:02]} (68. Rxf6+ $18 gxf6 69. Qxd5 (69. Qxb7 Rxa2 70. Qxd5 h5 $16)) 68... Rf1+ $11 {[%emt 0:00:43]} 69. Kh2 {[%emt 0:00:02]} Bc7+ {[%emt 0:00:11] The position is equal.} 70. g3 {[%emt 0:00:06]} Rf2+ {[%emt 0:01:10]} 71. Kg1 {[%emt 0:00:24]} (71. Kh1 $5 Rf1+ $8 72. Kg2 Rf2+ 73. Kh1 Rf1+ 74. Kg2 Rf2+ 75. Kh1 $11) 71... Rf1+ {[%emt 0:00:22]} 72. Kg2 {[%emt 0:00:11] Really sharp!} Rf2+ {[%emt 0:00:10]} 73. Kg1 {[%emt 0:02:54] Weighted Error Value: White=0.13 (very precise) /Black=0.14 (very precise)} 1/2-1/2

[Event "Charlotte Spring IM-C 2023"]
[Site "Charlotte"]
[Date "2023.03.18"]
[Round "5.2"]
[White "Chiku-Ratte, Olivier-Kenta"]
[Black "Sriniaiyer, Sudarshan"]
[Result "0-1"]
[ECO "D38"]
[WhiteElo "2301"]
[BlackElo "2186"]
[Annotator "TA"]
[PlyCount "134"]
[EventDate "2023.03.14"]
[EventType "tourn"]
[EventCountry "USA"]
[SourceTitle "playchess.com"]
[Source "ChessBase"]
[SourceQuality "1"]
[TimeControl "5400+30"]

{[%evp 12,134,12,8,25,15,7,14,16,31,0,-64,-54,-95,-72,-140,-155,-130,-146,-145,-142,-175,-177,-178,-174,-162,-153,-169,-177,-188,-161,-202,-177,-206,-192,-221,-220,-230,-229,-225,-210,-243,-237,-230,-237,-227,-215,-289,-274,-333,-351,-415,-380,-501,-496,-687,-618,-570,-577,-570,-575,-575,-576,-551,-554,-551,-530,-583,-500,-489,-488,-651,-641,-653,-662,-705,-693,-687,-597,-577,-566,-783,-785,-1021,-1013,-922,-869,-4898,-4660,-2868,-2683,-5903,-5718,-1675,-1519,-29972,-982,-29984,-29985,-29990,-29977,-29980,-29981,-29980,-29981,-29982,-29983,-29983,-29984,-29983,-29984,-29984,-29983,-29983,-29983,-29984,-29985,-29989,-29986,-29990,-29991,-29991,-29992,-29992,-29993]} 1. d4 {[%emt 0:01:36]} Nf6 {[%emt 0:00:16]} 2. c4 {[%emt 0:01:02]} e6 {[%emt 0:00:06]} 3. Nf3 {[%emt 0:00:36]} d5 {[%emt 0:00:12]} 4. Nc3 {[%emt 0:00:20]} Bb4 {[%emt 0:00:39]} 5. cxd5 {[%emt 0:02:41]} exd5 {[%emt 0:00:08]} 6. Bg5 {[%emt 0:00:04][%cal Bc1g5,Bg5h4,Bh4g3][%mdl 32]} h6 {[%emt 0:02:07]} 7. Bh4 {[%emt 0:01:41]} Nbd7 {[%emt 0:00:21] D38: Queen's Gambit Declined: Ragozin Defence (4 Nf3 Bb4).} 8. e3 {[%emt 0:02:26]} g5 {[%emt 0:01:10]} 9. Bg3 {[%emt 0:01:16]} Ne4 $1 {[%emt 0:01:45] The position is equal.} 10. Qb3 {[%emt 0:21:57]} (10. Nd2 {simplifies} Nxg3 11. hxg3 Nb6 12. a3) 10... c5 {[%emt 0:08:44][%cal Bc7c5,Bc5c4][%mdl 32]} 11. Bb5 {[%emt 0:05:33]} (11. Qxd5 $2 Nxc3 12. bxc3 Bxc3+ 13. Kd1 Bxa1 $19) (11. Nd2 $11 Nxd2 12. Kxd2) 11... Qa5 $15 {[%emt 0:18:22][%csl LRb5,LRc3] [#]} 12. O-O $146 {[%emt 0:11:56]} ({Predecessor:} 12. Qxd5 Bxc3+ 13. Kd1 Bxb2 14. Qe5+ Kf8 15. Qxh8+ Ke7 16. Bxd7 Nc3+ 17. Kc2 Bxd7 18. Qe5+ {1-0 Fugger,C (1940)-Stallmann,A (1945) Hoersching op 2nd 2014 (9)}) 12... c4 $1 {[%emt 0:07:35]} 13. Qa4 {[%emt 0:02:41]} (13. Bxd7+ $142 Bxd7 14. Qd1 Bxc3 15. bxc3) 13... Bxc3 $17 {[%emt 0:04:29][%mdl 64] Remove Defender} 14. bxc3 {[%emt 0:00:12]} Qxa4 {[%emt 0:00:25]} 15. Bxa4 {[%emt 0:00:06]} Nxc3 {[%emt 0:00:49]} 16. Bc2 {[%emt 0:05:28]} Ne2+ {[%emt 0:10:17] Excellent horsemanship.} 17. Kh1 {[%emt 0:00:09]} Nxg3+ {[%emt 0:00:07]} 18. fxg3 {[%emt 0:05:15] [#]} O-O $1 {[%emt 0:05:57]} 19. e4 {[%emt 0:04:02]} dxe4 {[%emt 0:04:34]} 20. Nd2 {[%emt 0:06:11] [#]} Nb6 {[%emt 0:04:49] ...f5 would be deadly.} 21. Nxe4 {[%emt 0:02:17]} Be6 {[%emt 0:01:20]} 22. h4 {[%emt 0:04:56]} gxh4 {[%emt 0:11:13]} 23. Nf6+ {[%emt 0:04:08]} Kh8 {[%emt 0:00:34]} 24. Be4 {[%emt 0:02:42]} Rad8 {[%emt 0:00:49]} ({And not} 24... hxg3 25. d5 $17) 25. Rad1 {[%emt 0:04:40]} Bd5 {[%emt 0:02:53]} ({Inferior is} 25... hxg3 26. d5) 26. gxh4 {[%emt 0:00:36]} Bxe4 {[%emt 0:02:22]} 27. Nxe4 {[%emt 0:00:10]} Nd5 {[%emt 0:00:08]} 28. Rb1 {[%emt 0:01:16]} b6 {[%emt 0:01:24]} 29. a4 {[%emt 0:05:23]} f5 {[%emt 0:06:01][%cal Bf7f5,Bf5f4][%mdl 32]} 30. Ng3 {[%emt 0:01:41]} f4 {[%emt 0:00:45]} 31. Nh5 {[%emt 0:01:24]} Kh7 {[%emt 0:01:36]} 32. Rbe1 {[%emt 0:00:40]} c3 {[%emt 0:01:25] White must now prevent ...c2.} 33. Rf2 {[%emt 0:00:39]} Rde8 {[%emt 0:03:38]} 34. Rc1 {[%emt 0:00:54]} Kg6 {[%emt 0:00:00]} 35. Nxf4+ {[%emt 0:00:46]} Rxf4 {[%emt 0:00:00]} 36. Rxf4 {[%emt 0:00:02]} Nxf4 {[%emt 0:00:00]} 37. Rxc3 $19 {[%emt 0:00:03][%mdl 4096] Endgame KRN-KR} Nd5 {[%emt 0:00:57] Against Rc7} 38. Rc6+ {[%emt 0:00:20]} Kh5 {[%emt 0:00:42]} 39. Rd6 {[%emt 0:00:23]} Ne3 {[%emt 0:00:26]} 40. Kh2 {[%emt 0:01:26]} Nf5 {[%emt 0:00:18]} (40... Kxh4 $2 {too greedy.} 41. Rxh6+ Kg5 42. Rh7 $19) 41. Rd7 {[%emt 0:00:37]} Re7 {[%emt 0:00:38]} 42. Rd8 {[%emt 0:00:12]} Re4 {[%emt 0:00:37]} 43. d5 {[%emt 0:00:48]} Rxh4+ {[%emt 0:00:05]} 44. Kg1 {[%emt 0:00:01]} Rd4 {[%emt 0:00:41]} 45. Kf2 {[%emt 0:00:26]} Kg5 {[%emt 0:00:19][%cal Og5f4]} 46. Rd7 {[%emt 0:00:26]} Rxa4 {[%emt 0:00:13]} 47. d6 {[%emt 0:00:40]} Rd4 {[%emt 0:00:05]} 48. Rxa7 {[%emt 0:00:20]} Rxd6 {[%emt 0:00:04] Strongly threatening ...Kf4.} 49. Rb7 {[%emt 0:00:16]} Kf4 {[%emt 0:00:13]} 50. Ke2 {[%emt 0:00:21]} Ke4 {[%emt 0:00:22]} 51. g4 {[%emt 0:00:16]} Nd4+ {[%emt 0:00:12]} 52. Kf2 {[%emt 0:00:19]} Kf4 {[%emt 0:00:16] ( -> ...Nf3)} 53. Rg7 {[%emt 0:00:20]} Ne6 {[%emt 0:00:48]} (53... Nf3 $142 54. Rf7+ Kxg4 55. Rg7+ Ng5 56. Rc7 Rf6+ 57. Ke3 h5 58. Rc4+ Kg3 59. Ke2 h4 60. Rc3+ Nf3 61. Rc8 Re6+ 62. Kd3 h3 63. Rg8+ Kf2 64. Rh8 h2 65. Kc4 Re4+ 66. Kb5 Rh4 67. Rc8 h1=Q 68. Rc2+ Kg3 69. Rc8 Kf2 70. Rc2+ Kg3 71. Rc8 Qd1 72. Kc6 Rc4+ 73. Kb7 Qd7+ 74. Rc7 Qxc7+ 75. Ka6 Qc6 76. Ka7 Ra4+ 77. Kb8 Ra8#) 54. Rg6 {[%emt 0:00:15] [#]} Ng5 $1 {[%emt 0:00:13] Black mates.} 55. Rg8 {[%emt 0:00:53]} (55. Rxd6 Ne4+) 55... Kxg4 {[%emt 0:00:07]} 56. Ke3 {[%emt 0:00:00]} h5 {[%emt 0:00:12][%cal Bh6h5,Bh5h4,Bh4h3,Bh3h2][%mdl 32]} 57. Rc8 {[%emt 0:00:17]} h4 {[%emt 0:00:31]} 58. Rc4+ {[%emt 0:00:03]} Kg3 {[%emt 0:00:15]} 59. Rc1 {[%emt 0:00:01]} Re6+ {[%emt 0:00:06]} 60. Kd4 {[%emt 0:00:07]} h3 {[%emt 0:00:13]} 61. Rg1+ {[%emt 0:00:02]} Kh4 {[%emt 0:00:06]} 62. Kd5 {[%emt 0:00:05]} Re2 {[%emt 0:00:12]} 63. Rb1 {[%emt 0:00:04]} h2 {[%emt 0:01:13]} 64. Rb4+ {[%emt 0:00:03]} Kg3 {[%emt 0:00:12]} 65. Rb3+ {[%emt 0:00:07]} Nf3 {[%emt 0:00:06]} 66. Rb1 {[%emt 0:00:03]} Re1 {[%emt 0:00:09]} 67. Rxe1 {[%emt 0:00:09]} Nxe1 {[%emt 0:00:02] White did not feel at home in the position after the opening.   Weighted Error Value: White=0.40/Black=0.05 (flawless)} 0-1

[Event "Charlotte Spring IM-C 2023"]
[Site "Charlotte"]
[Date "2023.03.17"]
[Round "5.3"]
[White "Georgiev, Vladimir"]
[Black "Jayaraman, Roshan"]
[Result "1/2-1/2"]
[ECO "D27"]
[WhiteElo "2404"]
[BlackElo "1907"]
[Annotator "TA"]
[PlyCount "39"]
[EventDate "2023.03.14"]
[EventType "tourn"]
[EventCountry "USA"]
[SourceTitle "playchess.com"]
[Source "ChessBase"]
[SourceQuality "1"]
[TimeControl "5400+30"]

{[%evp 22,24,0,-2,0]} 1. d4 {[%emt 0:00:04]} Nf6 {[%emt 1:31:00]} 2. Nf3 {[%emt 0:00:08]} d5 {[%emt 0:00:00]} 3. c4 {[%emt 0:00:40]} e6 {[%emt 0:00:00]} 4. Nc3 {[%emt 0:00:08]} dxc4 {[%emt 0:00:00]} 5. e3 {[%emt 0:00:28]} a6 {[%emt 0:00:00]} 6. a4 {[%emt 0:01:12]} c5 {[%emt 0:00:00]} 7. Bxc4 {[%emt 0:00:07]} Nc6 {[%emt 0:00:00]} 8. O-O {[%emt 0:00:09]} Be7 {[%emt 0:00:00]} 9. b3 {[%emt 0:04:59]} O-O {[%emt 0:00:00]} 10. Bb2 {[%emt 0:00:37]} cxd4 {[%emt 0:00:00]} 11. exd4 {[%emt 0:00:17]} Nb4 {[%emt 0:00:00]} 12. Ne5 {[%emt 0:03:25]} Bd7 {[%emt 0:00:00] [#] An uneventful encounter.  D27: Queen's Gambit Accepted: Classical main line: 7 e4!? and 7 a4.} {Predecessor:} 13. Qf3 $146 Bc6 14. Nxc6 bxc6 15. Rad1 a5 16. Ne2 Nfd5 17. Ng3 Bd6 18. Ne4 Bc7 19. Bc1 h6 20. Rfe1 {½-½ Gurevich,M (2627)-Balogh,C (2562) Warsaw AIG Life rapid Gp4 7th 2007 (3)} 1/2-1/2

[Event "Charlotte Spring IM-C 2023"]
[Site "Charlotte"]
[Date "2023.03.18"]
[Round "5.4"]
[White "Amburgy, Ryan"]
[Black "Nguyen, James Le"]
[Result "1-0"]
[ECO "D45"]
[WhiteElo "2242"]
[BlackElo "2100"]
[Annotator "TA"]
[PlyCount "93"]
[EventDate "2023.03.14"]
[EventType "tourn"]
[EventCountry "USA"]
[SourceTitle "playchess.com"]
[Source "ChessBase"]
[SourceQuality "1"]
[TimeControl "5400+30"]

{[%evp 15,92,30,22,21,27,-14,0,-14,-12,-17,-17,-17,0,-34,131,129,132,135,132,122,142,119,145,141,143,130,156,154,164,184,194,168,168,187,252,215,234,140,152,139,212,216,203,180,191,174,241,213,294,285,637,649,616,418,678,653,672,664,1230,1237,1204,1202,1133,1064,29985,29986,29989,29984,29984,29985,29988,29989,29989,29990,29991,29988,29991,29992,29999]} 1. Nf3 {[%emt 0:00:02]} d5 {[%emt 0:02:19]} 2. e3 {[%emt 0:00:06]} Nf6 {[%emt 0:00:40]} 3. c4 {[%emt 0:00:06]} c6 {[%emt 0:00:26]} 4. Nc3 {[%emt 0:00:08]} a6 {[%emt 0:01:00]} 5. d4 {[%emt 0:00:15]} e6 {[%emt 0:00:37]} 6. b3 {[%emt 0:00:42]} Bb4 {[%emt 0:00:13]} 7. Bd2 {[%emt 0:00:07]} O-O {[%emt 0:00:25]} 8. Bd3 {[%emt 0:00:09]} Nbd7 {[%emt 0:00:12]} 9. O-O {[%emt 0:00:23][%cal Oc3d5] D45: Semi-Slav: 5 e3.} Bd6 {[%emt 0:00:31]} 10. e4 {[%emt 0:01:49]} dxc4 {[%emt 0:00:37]} 11. Bxc4 {[%emt 0:04:31] The position is equal.} e5 $1 {[%emt 0:00:15]} 12. Bg5 {[%emt 0:02:03]} b5 {[%emt 0:01:31]} 13. Be2 {[%emt 0:00:32] [#]} Re8 $146 {[%emt 0:03:36]} ({Predecessor:} 13... h6 14. Bh4 Re8 15. Rc1 Bb7 16. dxe5 Nxe5 17. Nd4 Ng6 18. Bg3 Bxg3 19. hxg3 Nxe4 {½-½ Wiedenkeller,M (2434)-Karjakin,S (2722) EU-Cup 25th Ohrid 2009 (3.2)}) 14. d5 {[%emt 0:03:38]} c5 {[%emt 0:03:30]} (14... cxd5 $15 {stays ahead.} 15. Nxd5 h6 16. Bxf6 Nxf6) 15. a4 $16 {[%emt 0:06:13]} b4 {[%emt 0:03:43] [#]} 16. Nb1 {[%emt 0:00:04][%cal Bc3b1,Bb1d2,Bd2e4][%mdl 32]} h6 {[%emt 0:00:40]} 17. Bxf6 {[%emt 0:00:10]} Nxf6 {[%emt 0:01:34]} 18. Nfd2 {[%emt 0:00:09]} Rf8 {[%emt 0:13:57]} 19. Qc2 {[%emt 0:03:57]} Ne8 {[%emt 0:01:16]} 20. Nc4 {[%emt 0:01:10]} f5 {[%emt 0:00:55]} 21. Nbd2 {[%emt 0:00:41] White is more active.} Bc7 {[%emt 0:11:44]} 22. Rad1 {[%emt 0:04:07]} Qe7 {[%emt 0:04:47]} 23. exf5 {[%emt 0:06:40]} Bxf5 {[%emt 0:00:42]} 24. Bd3 {[%emt 0:00:09]} Bd7 {[%emt 0:03:13]} (24... Nd6 {was necessary.}) 25. Ne4 $18 {[%emt 0:03:23][%cal Od5d6] d6! is the strong threat. Excellent horsemanship.} Nd6 {[%emt 0:04:10]} 26. Ncxd6 {[%emt 0:00:57]} ({White should try} 26. Nxc5 $18 Bf5 27. Bxf5 Nxf5 28. Ne6) 26... Bxd6 $16 {[%emt 0:00:18]} 27. Rc1 {[%emt 0:01:26]} Rfc8 {[%emt 0:06:35]} (27... Bf5 $16 {was worth a try.} 28. Ng3 (28. Nxc5 Bxd3 29. Nxd3 e4 $15) 28... Bd7) 28. Qe2 $18 {[%emt 0:00:54]} a5 {[%emt 0:01:12]} 29. Qe3 {[%emt 0:01:33]} Rc7 {[%emt 0:02:45]} 30. Rfe1 {[%emt 0:01:15]} Re8 {[%emt 0:01:32] [#]} (30... Bf5 $142 31. Nd2 Bxd3 32. Qxd3 Rd7) 31. h4 $1 {[%emt 0:05:13][%mdl 512]} Qf8 {[%emt 0:06:37]} (31... Rf8 32. Nxd6) 32. Qg3 {[%emt 0:01:16]} Bc8 $2 {[%emt 0:01:41]} (32... c4) 33. Qg6 {[%emt 0:01:50]} Rd8 {[%emt 0:00:50] Black is weak on the light squares} 34. Ng3 {[%emt 0:01:16] Prevents Bf5. aiming for Re3.} Qf6 {[%emt 0:02:14]} (34... Qf7 $142 35. Qh7+ Kf8) 35. Qh7+ {[%emt 0:00:32]} Kf8 {[%emt 0:00:26]} 36. Bg6 {[%emt 0:01:19] Hoping for Ne4.} Rf7 {[%emt 0:08:32]} 37. Ne4 {[%emt 0:02:25]} Qf4 {[%emt 0:01:24]} 38. g3 {[%emt 0:00:30]} (38. Nxc5 $2 {too greedy.} Qxf2+ 39. Kh1 Qxh4+ 40. Kg1 Bxc5+ 41. Rxc5 Qxe1+ $19) 38... Qf3 {[%emt 0:00:55]} 39. Re3 {[%emt 0:00:06]} (39. Nxc5 $2 {is the wrong capture.} Bxc5 40. Qh8+ Ke7 41. Rxe5+ Be6 42. Rxe6+ Kd7 $19) (39. Bxf7 {leads to mate.} Bh3 40. Qh8+ Ke7) 39... Qg4 {[%emt 0:00:21]} 40. Nxd6 {[%emt 0:00:30][%mdl 64] Remove Defender. White mates.} Rxd6 {[%emt 0:00:33]} 41. Qh8+ {[%emt 0:00:03]} Ke7 {[%emt 0:00:13]} 42. Rxe5+ {[%emt 0:00:13]} Kf6 {[%emt 0:01:10]} 43. Bxf7 {[%emt 0:01:31]} Kxe5 {[%emt 0:00:15]} 44. Qe8+ {[%emt 0:00:28]} Kf6 {[%emt 0:02:11]} 45. Bh5 {[%emt 0:00:47]} Qf5 {[%emt 0:02:28]} 46. Re1 {[%emt 0:00:52][%csl Gh5][%cal Re8f7]} Rxd5 {[%emt 0:02:58]} 47. Qe7# {[%emt 0:00:39] Artfully played by Amburgy.   Weighted Error Value: White=0.15 (very precise) /Black=0.53} 1-0